bitfinex/quotes_SOLUSD_20241121
["timestamp","ask_amount","ask_price","bid_price","bid_amount"]
[1732196285406,0.5,246.52,246.48,22.73487382]
[1732196285576,0.5,246.49,246.48,23.776884]
[1732196285901,0.5,246.46,246.45,23.776884]
[1732196287095,0.5,246.43,246.37,22.73487382]
[1732196287288,0.5,246.4,246.37,22.73487382]
[1732196287814,0.5,246.4,246.39,22.73487382]
[1732196288522,0.5,246.42,246.4,23.776884]
[1732196288888,0.5,246.4,246.38,23.776884]
[1732196289089,32.0777,246.46,246.26,0.60866467]
[1732196289090,0.5,246.37,246.35,22.73487382]
[1732196289492,0.5,246.37,246.33,22.73487382]
[1732196289912,16.7014,246.42,246.24,54.36837382]
[1732196289913,0.5,246.3,246.24,22.73487382]
[1732196290094,16.7014,246.42,246.24,22.73487382]
[1732196290095,0.5,246.28,246.24,22.73487382]
[1732196290411,0.5,246.28,246.2,22.73487382]
[1732196290412,0.5,246.26,246.2,22.73487382]
[1732196290725,0.5,246.23,246.2,22.73487382]
[1732196291217,0.5,246.23,246.18,22.73487382]
[1732196292594,0.5,246.18,246.16,22.73487382]
[1732196292793,0.5,246.18,246.14,22.73487382]
[1732196293013,0.5,246.15,246.14,22.73487382]
[1732196293404,0.5,246.15,246.12,22.73487382]
[1732196294214,0.5,246.17,246.13,20.0]
[1732196294412,0.5,246.13,246.02,16.83843447]
[1732196294624,0.5,246.13,246.1,22.73487382]
[1732196294800,0.5,246.13,246.0,22.73487382]
[1732196294801,0.5,246.13,246.12,22.73487382]
[1732196295116,13.1433,246.27,246.12,22.73487382]
[1732196295117,0.5,246.17,246.12,22.73487382]
[1732196295423,0.5,246.19,246.16,22.73487382]
[1732196295602,0.5,246.19,246.18,22.73487382]
[1732196295809,0.5,246.19,246.18,46.51175782]
[1732196296113,0.5,246.19,246.15,22.73487382]
[1732196296316,0.5,246.16,246.15,46.51175782]
[1732196296626,0.5,246.12,246.11,22.73487382]
[1732196297509,0.5,246.1,246.09,22.73487382]
[1732196298821,0.5,246.1,246.09,46.51175782]
[1732196299520,31.7265,246.16,246.1,23.776884]
[1732196299521,0.5,246.12,246.1,23.776884]
[1732196299702,0.5,246.14,246.12,23.776884]
[1732196299907,0.5,246.14,246.13,22.73487382]
[1732196300110,0.5,246.14,246.13,46.51175782]
[1732196300818,0.5,246.16,246.14,23.776884]
[1732196301029,0.5,246.16,246.15,46.51175782]
[1732196301214,0.5,246.19,246.15,46.51175782]
[1732196301407,0.5,246.19,246.18,22.73487382]
[1732196301594,0.5,246.19,246.18,46.51175782]
[1732196301801,0.5,246.21,246.18,46.51175782]
[1732196302000,0.5,246.21,246.2,22.73487382]
[1732196302303,0.5,246.21,246.2,46.51175782]
[1732196302506,0.5,246.23,246.21,23.776884]
[1732196304318,0.5,246.21,246.2,22.73487382]
[1732196304496,0.5,246.21,246.01,0.5]
[1732196304497,0.5,246.19,246.17,23.776884]
[1732196305201,0.5,246.17,246.16,22.73487382]
[1732196306923,0.5,246.15,246.14,22.73487382]
[1732196307128,0.5,246.15,246.14,66.51175782]
[1732196307511,0.5,246.15,246.14,46.51175782]
[1732196308021,0.5,246.13,246.12,22.73487382]
[1732196308601,0.5,246.13,246.01,0.60917687]
[1732196308602,0.5,246.13,246.1,22.73487382]
[1732196308809,0.5,246.11,246.1,22.73487382]
[1732196309428,0.5,246.13,246.1,22.73487382]
[1732196309632,0.5,246.13,246.12,22.73487382]
[1732196310009,0.5,246.11,246.1,46.51175782]
[1732196311407,0.5,246.11,246.1,22.73487382]
[1732196311836,0.5,246.11,246.0,22.73487382]
[1732196311837,0.5,246.11,246.08,22.73487382]
[1732196312013,12.0391,246.14,245.97,16.233041]
[1732196312014,0.5,245.98,245.97,16.233041]
[1732196312732,0.5,245.98,245.96,22.73487382]
[1732196313608,26.79907382,246.05,245.97,66.0795082]
[1732196313609,0.5,246.05,245.97,66.0795082]
[1732196313810,0.5,246.05,246.04,46.51175782]
[1732196314839,0.5,246.05,246.04,66.51175782]
[1732196315625,0.5,246.1,246.04,66.51175782]
[1732196315933,0.5,246.06,246.05,43.776884]
[1732196317038,0.5,246.04,246.03,22.73487382]
[1732196318314,0.5,246.04,246.03,46.51175782]
[1732196318724,0.5,246.06,246.04,43.776884]
[1732196318932,0.5,246.06,246.05,22.73487382]
[1732196319135,0.5,246.06,246.05,66.51175782]
[1732196322027,0.5,246.08,246.06,23.776884]
[1732196322240,0.5,246.08,246.07,22.73487382]
[1732196322539,0.5,246.08,246.07,46.51175782]
[1732196325541,0.5,246.1,246.07,46.51175782]
[1732196325736,35.8842,246.15,246.07,46.51175782]
[1732196325737,0.5,246.08,246.07,46.51175782]
[1732196327744,0.5,246.1,246.08,23.776884]
[1732196332147,0.5,246.08,246.07,46.51175782]
[1732196332518,0.5,246.08,246.07,23.776884]
[1732196334149,0.5,246.01,245.94,22.73487382]
[1732196334449,32.0097,246.05,245.94,22.73487382]
[1732196334450,0.5,245.99,245.94,22.73487382]
[1732196335440,22.73487382,246.04,246.0,14.5]
[1732196336724,12.1494,246.03,246.0,14.5]
[1732196336923,12.1494,246.09,246.02,22.73487382]
[1732196337234,12.1494,246.09,246.06,22.73487382]
[1732196337449,32.4964,246.11,246.07,23.776884]
[1732196338124,32.4964,246.11,246.04,22.73487382]
[1732196338326,22.73487382,246.07,246.01,23.776884]
[1732196338724,22.73487382,246.04,246.0,14.5]
[1732196338927,22.73487382,246.06,246.0,14.5]
[1732196339742,22.73487382,246.04,246.0,14.5]
[1732196339955,36.02507382,246.04,246.0,14.5]
[1732196340338,22.73487382,246.02,246.0,14.5]
[1732196341228,26.79957382,246.02,246.0,14.5]
[1732196341955,32.2951,246.01,246.0,14.5]
[1732196344640,22.73487382,245.93,245.84,22.73487382]
[1732196345347,22.73487382,245.93,245.62,88.37181645]
[1732196345348,22.73487382,245.88,245.79,22.73487382]
[1732196346827,22.73487382,245.86,245.77,22.73487382]
[1732196347142,22.73487382,245.81,245.63,16.250321]
[1732196347344,22.73487382,245.75,245.67,22.73487382]
[1732196347555,22.73487382,245.73,245.65,22.73487382]
[1732196347752,22.73487382,245.76,245.69,22.73487382]
[1732196348059,22.73487382,245.76,245.67,22.73487382]
[1732196348644,22.73487382,245.76,245.69,20.0]
[1732196349160,22.73487382,245.76,245.68,23.776884]
[1732196349463,12.8288,245.78,245.7,22.73487382]
[1732196349640,35.56367382,245.78,245.7,22.73487382]
[1732196349841,22.73487382,245.76,245.68,22.73487382]
[1732196350261,22.73487382,245.77,245.69,22.73487382]
[1732196351457,22.73487382,245.77,245.7,22.73487382]
[1732196351976,12.8288,245.78,245.73,23.776884]
[1732196354642,22.73487382,245.77,245.7,22.73487382]
[1732196354843,22.73487382,245.76,245.71,23.776884]
[1732196355070,22.73487382,245.75,245.69,20.0]
[1732196355247,22.73487382,245.76,245.69,20.0]
[1732196355569,22.73487382,245.76,245.69,42.73487382]
[1732196355865,22.73487382,245.76,245.69,22.73487382]
[1732196356235,22.73487382,245.76,245.69,43.776884]
[1732196356865,26.80387382,245.76,245.69,43.776884]
[1732196357369,26.80387382,245.76,245.69,66.51175782]
[1732196357955,26.80387382,245.76,245.69,43.776884]
[1732196358158,22.73487382,245.75,245.69,43.776884]
[1732196358547,4.069,245.76,245.69,43.776884]
[1732196358548,22.73487382,245.74,245.69,23.776884]
[1732196358875,4.069,245.76,245.68,23.776884]
[1732196358876,22.73487382,245.75,245.68,23.776884]
[1732196359466,4.069,245.76,245.68,23.776884]
[1732196359467,22.73487382,245.74,245.68,23.776884]
[1732196360657,14.29457128,245.73,245.67,23.776884]
[1732196360849,14.29457128,245.74,245.67,38.07145528]
[1732196361670,4.0688,245.77,245.68,14.29457128]
[1732196361966,14.29457128,245.76,245.69,14.29457128]
[1732196362158,31.19207128,245.78,245.71,14.29457128]
[1732196362757,12.8288,245.78,245.73,14.29457128]
[1732196363756,14.29457128,245.81,245.74,14.29457128]
[1732196364066,18.36277128,245.81,245.74,14.29457128]
[1732196364279,18.36277128,245.81,245.65,24.38723597]
[1732196364280,14.29457128,245.8,245.73,14.29457128]
[1732196364569,14.29457128,245.8,245.74,23.776884]
[1732196364762,18.36277128,245.81,245.74,38.07145528]
[1732196364943,14.29457128,245.81,245.74,38.07145528]
[1732196365143,14.29457128,245.8,245.74,23.776884]
[1732196365455,4.0679,245.83,245.74,23.776884]
[1732196365456,14.29457128,245.81,245.74,23.776884]
[1732196366352,18.36277128,245.81,245.74,23.776884]
[1732196367258,26.49817128,245.84,245.76,14.29457128]
[1732196367479,12.2036,245.84,245.78,14.29457128]
[1732196367957,16.2713,245.84,245.78,14.29457128]
[1732196368472,30.56587128,245.84,245.76,14.29457128]
[1732196368778,14.29457128,245.82,245.76,23.776884]
[1732196368973,14.29457128,245.82,245.75,23.776884]
[1732196369275,4.0681,245.81,245.75,23.776884]
[1732196369475,4.0681,245.81,245.73,23.776884]
[1732196369476,14.29457128,245.8,245.73,23.776884]
[1732196370784,18.36297128,245.8,245.73,23.776884]
[1732196372284,18.36297128,245.8,245.74,14.29457128]
[1732196372583,18.36297128,245.8,245.73,23.776884]
[1732196372584,4.0678,245.83,245.76,14.29457128]
[1732196373079,12.2036,245.84,245.79,23.776884]
[1732196373457,16.2713,245.84,245.78,14.29457128]
[1732196373676,30.56587128,245.84,245.76,14.29457128]
[1732196373986,14.29457128,245.84,245.76,14.29457128]
[1732196374561,14.29457128,245.86,245.78,14.29457128]
[1732196375381,44.82647128,245.88,245.8,14.29457128]
[1732196375559,30.5319,245.88,245.82,14.29457128]
[1732196375756,48.89347128,245.88,245.78,14.29457128]
[1732196376364,4.0675,245.85,245.78,14.29457128]
[1732196376775,14.29457128,245.84,245.76,14.29457128]
[1732196376975,4.0675,245.85,245.78,14.29457128]
[1732196378084,14.29457128,245.84,245.76,14.29457128]
[1732196378388,4.0675,245.85,245.74,14.29457128]
[1732196378389,14.29457128,245.82,245.74,14.29457128]
[1732196378679,4.0681,245.81,245.74,14.29457128]
[1732196378894,14.29457128,245.84,245.76,14.29457128]
[1732196379790,14.29457128,245.84,245.67,0.61035824]
[1732196379791,14.29457128,245.82,245.74,14.29457128]
[1732196380765,4.0681,245.81,245.74,14.29457128]
[1732196382163,4.0681,245.81,245.73,14.29457128]
[1732196382357,18.36267128,245.81,245.73,14.29457128]
[1732196382777,14.29457128,245.79,245.71,14.29457128]
[1732196382981,4.0681,245.81,245.69,14.29457128]
[1732196383172,14.29457128,245.76,245.69,14.29457128]
[1732196383688,14.29457128,245.78,245.71,14.29457128]
[1732196384066,18.36327128,245.78,245.71,14.29457128]
[1732196384467,14.29457128,245.77,245.7,14.29457128]
[1732196385586,18.36337128,245.77,245.7,14.29457128]
[1732196386680,14.29457128,245.76,245.69,14.29457128]
[1732196386865,3.36337128,245.77,245.65,23.776884]
[1732196387064,14.29457128,245.76,245.69,14.29457128]
[1732196388583,17.65794256,245.77,245.7,14.29457128]
[1732196388902,17.65794256,245.77,245.65,23.776884]
[1732196388903,14.29457128,245.76,245.68,14.29457128]
[1732196389196,14.29457128,245.76,245.69,14.29457128]
[1732196389401,14.29457128,245.74,245.67,14.29457128]
[1732196389579,30.6383,245.76,245.67,23.776884]
[1732196389580,14.29457128,245.73,245.67,23.776884]
[1732196389782,14.29457128,245.73,245.66,14.29457128]
[1732196389783,14.29457128,245.71,245.66,20.0]
[1732196390287,14.29457128,245.72,245.66,20.0]
[1732196390791,30.6383,245.76,245.67,14.29457128]
[1732196390792,4.0691,245.75,245.67,14.29457128]
[1732196390993,14.29457128,245.74,245.67,14.29457128]
[1732196391370,14.29457128,245.73,245.67,20.0]
[1732196391591,14.29457128,245.72,245.67,20.0]
[1732196392096,14.29457128,245.73,245.67,20.0]
[1732196392268,12.0541,245.75,245.69,14.29457128]
[1732196392470,14.29457128,245.74,245.67,14.29457128]
[1732196393886,18.36387128,245.74,245.67,14.29457128]
[1732196394884,14.29457128,245.74,245.67,14.29457128]
[1732196396072,14.29457128,245.74,245.68,14.29457128]
[1732196396293,14.29457128,245.79,245.72,14.29457128]
[1732196396488,18.36307128,245.8,245.73,14.29457128]
[1732196397493,4.0685,245.8,245.74,14.29457128]
[1732196397878,45.29807128,245.88,245.59,20.5]
[1732196397879,45.3704,245.88,245.79,14.29457128]
[1732196398101,45.3704,245.88,245.84,14.29457128]
[1732196398273,14.29457128,245.91,245.84,14.29457128]
[1732196398600,14.29457128,245.91,245.82,14.29457128]
[1732196398800,14.29457128,245.87,245.79,14.29457128]
[1732196399006,14.29457128,245.85,245.79,20.0]
[1732196399204,14.29457128,245.86,245.79,20.0]
[1732196399510,14.29457128,245.86,245.78,14.29457128]
[1732196399684,14.29457128,245.85,245.77,14.29457128]
[1732196399995,14.29457128,245.87,245.79,14.29457128]
[1732196400411,4.0665,245.91,245.64,31.0712]
[1732196400412,1.0,245.89,245.64,31.0712]
[1732196400623,14.29457128,245.83,245.75,14.29457128]
[1732196401282,14.29457128,245.82,245.74,14.29457128]
[1732196401490,18.36267128,245.82,245.74,14.29457128]
[1732196401990,14.29457128,245.8,245.72,14.29457128]
[1732196403003,58.63417128,245.81,245.73,14.29457128]
[1732196403209,14.29457128,245.8,245.73,14.29457128]
[1732196403507,14.29457128,245.77,245.69,14.29457128]
[1732196403801,4.0685,245.79,245.66,14.29457128]
[1732196404011,44.3396,245.81,245.7,14.29457128]
[1732196404198,48.4078,245.81,245.74,14.29457128]
[1732196404711,14.29457128,245.79,245.61,0.61034006]
[1732196404884,14.29457128,245.79,245.58,50.52286551]
[1732196404885,14.29457128,245.76,245.7,20.0]
[1732196405401,18.36347128,245.77,245.7,34.29457128]
[1732196405794,18.36347128,245.77,245.69,14.29457128]
[1732196406110,18.36347128,245.77,245.69,20.0]
[1732196406111,14.29457128,245.75,245.69,20.0]
[1732196406317,14.29457128,245.75,245.67,14.29457128]
[1732196406911,14.29457128,245.75,245.59,0.61040933]
[1732196406912,18.36307128,245.79,245.7,14.29457128]
[1732196407088,14.29457128,245.73,245.58,44.516]
[1732196407291,14.29457128,245.73,245.66,14.29457128]
[1732196407509,14.29457128,245.74,245.66,14.29457128]
[1732196407703,14.29457128,245.74,245.58,44.516]
[1732196407909,14.29457128,245.72,245.65,14.29457128]
[1732196408114,14.29457128,245.74,245.66,14.29457128]
[1732196408812,14.29457128,245.75,245.67,14.29457128]
[1732196409798,18.36387128,245.75,245.67,14.29457128]
[1732196410114,14.29457128,245.73,245.67,14.29457128]
[1732196410699,14.29457128,245.73,245.58,44.516]
[1732196410700,48.4078,245.81,245.71,14.29457128]
[1732196410911,14.29457128,245.78,245.71,14.29457128]
[1732196412110,14.29457128,245.74,245.66,14.29457128]
[1732196412704,14.29457128,245.73,245.65,14.29457128]
[1732196412901,14.29457128,245.71,245.64,14.29457128]
[1732196413290,14.29457128,245.73,245.65,14.29457128]
[1732196413499,4.0685,245.79,245.7,14.29457128]
[1732196413699,14.29457128,245.78,245.71,14.29457128]
[1732196414105,14.29457128,245.79,245.72,14.29457128]
[1732196414614,14.29457128,245.77,245.68,14.29457128]
[1732196414797,14.29457128,245.74,245.66,34.29457128]
[1732196414993,14.29457128,245.76,245.68,34.29457128]
[1732196415426,18.36357128,245.76,245.68,34.29457128]
[1732196415613,14.29457128,245.75,245.68,20.0]
[1732196416123,58.63417128,245.81,245.73,14.29457128]
[1732196416294,44.3396,245.81,245.74,14.29457128]
[1732196416495,14.29457128,245.8,245.72,14.29457128]
[1732196416912,14.29457128,245.8,245.73,23.776884]
[1732196418012,32.9702,245.87,245.78,14.29457128]
[1732196418217,32.9702,245.87,245.8,14.29457128]
[1732196418529,32.9702,245.87,245.72,30.3408]
[1732196418530,14.29457128,245.84,245.76,14.29457128]
[1732196419219,14.29457128,245.86,245.78,14.29457128]
[1732196419694,51.33197128,245.87,245.78,14.29457128]
[1732196420015,14.29457128,245.85,245.78,14.29457128]
[1732196420607,51.33197128,245.87,245.78,14.29457128]
[1732196421006,47.26477128,245.87,245.79,23.776884]
[1732196421195,47.26477128,245.87,245.8,14.29457128]
[1732196421196,32.9702,245.87,245.8,14.29457128]
[1732196421913,4.0659,245.95,245.86,14.29457128]
[1732196422110,14.29457128,245.95,245.86,14.29457128]
[1732196422295,14.29457128,245.95,245.88,14.29457128]
[1732196422703,14.29457128,245.95,245.86,14.29457128]
[1732196423330,4.0659,245.95,245.86,14.29457128]
[1732196423633,14.29457128,245.94,245.86,14.29457128]
[1732196424521,14.29457128,245.91,245.84,14.29457128]
[1732196425029,14.29457128,245.91,245.82,14.29457128]
[1732196425229,14.29457128,245.91,245.84,23.776884]
[1732196425421,5.48571682,245.99,245.84,38.07145528]
[1732196425623,14.29457128,245.97,245.88,14.29457128]
[1732196425933,14.29457128,245.99,245.91,23.776884]
[1732196427517,18.35987128,245.99,245.91,23.776884]
[1732196428331,14.29457128,245.99,245.91,23.776884]
[1732196428742,14.29457128,245.97,245.91,23.776884]
[1732196429210,4.0643,246.04,245.94,14.29457128]
[1732196429409,18.35887128,246.04,245.94,14.29457128]
[1732196429942,14.29457128,246.02,245.94,14.29457128]
[1732196430232,14.29457128,246.0,245.93,23.776884]
[1732196430421,4.0643,246.04,245.93,23.776884]
[1732196430422,14.29457128,245.98,245.93,23.776884]
[1732196430624,14.29457128,245.98,245.92,20.0]
[1732196430934,14.29457128,245.98,245.91,20.0]
[1732196432314,18.35997128,245.98,245.89,23.776884]
[1732196432833,14.29457128,245.96,245.88,14.29457128]
[1732196433130,47.7789,245.98,245.86,14.29457128]
[1732196433340,14.29457128,245.93,245.86,14.29457128]
[1732196434213,47.7789,245.98,245.77,30.5854]
[1732196434214,18.36037128,245.95,245.87,14.29457128]
[1732196434437,43.7135,245.98,245.9,14.29457128]
[1732196434615,14.29457128,245.96,245.88,38.07145528]
[1732196435245,58.00807128,245.98,245.9,14.29457128]
[1732196435420,18.36027128,245.96,245.88,38.07145528]
[1732196435825,14.29457128,245.96,245.88,38.07145528]
[1732196436250,14.29457128,246.0,245.92,14.29457128]
[1732196436432,14.29457128,246.0,245.93,23.776884]
[1732196436942,4.0648,246.02,245.93,23.776884]
[1732196436943,14.29457128,245.98,245.93,23.776884]
[1732196437249,14.29457128,245.98,245.91,43.776884]
[1732196437543,14.29457128,245.98,245.91,20.0]
[1732196437749,14.29457128,245.96,245.89,23.776884]
[1732196438128,14.29457128,245.94,245.86,14.29457128]
[1732196439543,4.0661,245.93,245.86,14.29457128]
[1732196439919,24.0648,246.02,245.9,14.29457128]
[1732196440126,14.29457128,245.99,245.91,23.776884]
[1732196441231,4.0653,245.98,245.9,14.29457128]
[1732196441927,18.35977128,245.99,245.9,14.29457128]
[1732196442127,18.35977128,245.99,245.91,23.776884]
[1732196442552,14.29457128,245.96,245.88,14.29457128]
[1732196442732,14.29457128,245.96,245.89,23.776884]
[1732196443146,4.0648,246.01,245.95,14.29457128]
[1732196443353,4.0648,246.01,246.0,15.0]
[1732196444735,21.3168,246.11,246.0,15.0]
[1732196444736,44.8856,246.12,246.01,23.776884]
[1732196445051,0.5,246.22,246.01,23.776884]
[1732196445052,4.0614,246.22,246.11,14.29457128]
[1732196445347,32.32,246.23,246.16,14.29457128]
[1732196445655,14.29457128,246.22,246.14,14.29457128]
[1732196445839,36.3813,246.23,246.1,14.29457128]
[1732196445840,14.29457128,246.18,246.1,14.29457128]
[1732196447036,4.0622,246.17,246.1,14.29457128]
[1732196447560,4.0622,246.17,246.12,14.29457128]
[1732196449542,14.29457128,246.2,246.12,14.29457128]
[1732196449738,4.0616,246.21,246.14,14.29457128]
[1732196450126,24.0616,246.21,246.14,14.29457128]
[1732196450641,14.29457128,246.2,246.12,14.29457128]
[1732196450846,24.0618,246.2,246.14,14.29457128]
[1732196451659,4.0618,246.2,246.14,14.29457128]
[1732196452044,18.35637128,246.2,246.12,14.29457128]
[1732196452733,4.0618,246.2,246.1,14.29457128]
[1732196452942,14.29457128,246.18,246.1,14.29457128]
[1732196454232,14.29457128,246.2,246.12,14.29457128]
[1732196454633,14.29457128,246.18,246.1,14.29457128]
[1732196454934,14.29457128,246.21,246.14,14.29457128]
[1732196455134,14.29457128,246.21,246.07,23.776884]
[1732196455135,14.29457128,246.19,246.12,14.29457128]
[1732196455532,14.29457128,246.21,246.14,14.29457128]
[1732196455749,18.35617128,246.21,246.12,14.29457128]
[1732196456463,18.35617128,246.21,246.14,14.29457128]
[1732196456629,4.0616,246.21,246.14,14.29457128]
[1732196457453,50.67587128,246.23,246.14,14.29457128]
[1732196458135,14.29457128,246.21,246.14,14.29457128]
[1732196459352,14.29457128,246.29,246.2,14.29457128]
[1732196459549,14.29457128,246.29,246.21,23.776884]
[1732196459742,14.29457128,246.31,246.24,14.29457128]
[1732196461273,14.29457128,246.35,246.26,14.29457128]
[1732196461568,14.29457128,246.35,246.28,14.29457128]
[1732196461935,43.2928,246.4,246.29,23.776884]
[1732196462133,61.64587128,246.4,246.31,23.776884]
[1732196462441,14.29457128,246.32,246.18,44.74817128]
[1732196462641,14.29457128,246.36,246.18,20.0]
[1732196462642,14.29457128,246.21,246.18,20.0]
[1732196462948,14.29457128,246.19,246.12,47.42047128]
[1732196463146,14.29457128,246.19,246.12,14.29457128]
[1732196463659,14.29457128,246.21,246.14,14.29457128]
[1732196463862,0.5,246.37,246.16,14.29457128]
[1732196463863,4.0594,246.34,246.16,14.29457128]
[1732196464063,14.29457128,246.3,246.23,14.29457128]
[1732196464266,10.1453,246.42,246.27,14.29457128]
[1732196464441,14.29457128,246.36,246.28,20.0]
[1732196464638,10.1453,246.42,246.28,20.0]
[1732196464639,22.75521217,246.34,246.28,20.0]
[1732196464967,22.75521217,246.34,246.29,23.776884]
[1732196465456,22.75521217,246.36,246.29,23.776884]
[1732196465763,22.75521217,246.38,246.29,46.53209617]
[1732196465955,22.75521217,246.36,246.29,23.776884]
[1732196466537,22.75521217,246.38,246.3,20.0]
[1732196466760,22.75521217,246.38,246.31,46.53209617]
[1732196466970,4.0581,246.42,246.31,46.53209617]
[1732196466971,22.75521217,246.4,246.31,46.53209617]
[1732196467141,4.0581,246.42,246.33,23.776884]
[1732196467142,22.75521217,246.38,246.33,23.776884]
[1732196467341,22.75521217,246.36,246.33,23.776884]
[1732196467644,22.75521217,246.34,246.33,23.776884]
[1732196467844,22.75521217,246.34,246.27,22.75521217]
[1732196468063,22.75521217,246.32,246.23,22.75521217]
[1732196468360,22.75521217,246.32,246.21,32.9073]
[1732196468361,22.75521217,246.33,246.25,22.75521217]
[1732196468564,22.75521217,246.33,246.26,20.0]
[1732196469460,22.75521217,246.33,246.27,23.776884]
[1732196470254,22.75521217,246.35,246.27,46.53209617]
[1732196470562,22.75521217,246.37,246.29,22.75521217]
[1732196470867,22.75521217,246.41,246.34,23.776884]
[1732196471574,66.70271217,246.43,246.36,23.776884]
[1732196471764,16.215717,246.57,246.43,20.0]
[1732196472062,24.9,246.67,246.43,20.0]
[1732196472063,22.75521217,246.67,246.57,23.776884]
[1732196472269,22.75521217,246.65,246.57,23.776884]
[1732196472468,4.0535,246.7,246.49,23.776884]
[1732196472765,22.75521217,246.59,246.51,23.776884]
[1732196473150,22.75521217,246.59,246.53,23.776884]
[1732196473350,22.75521217,246.55,246.46,22.75521217]
[1732196473553,22.75521217,246.53,246.47,20.0]
[1732196473750,22.75521217,246.59,246.5,22.75521217]
[1732196473961,4.0538,246.68,246.56,22.75521217]
[1732196474275,22.75521217,246.66,246.59,23.776884]
[1732196474463,22.75521217,246.62,246.55,43.776884]
[1732196474855,22.75521217,246.62,246.55,23.776884]
[1732196475244,22.75521217,246.6,246.53,23.776884]
[1732196475444,22.75521217,246.6,246.29,70.0]
[1732196475445,22.75521217,246.54,246.46,22.75521217]
[1732196475660,22.75521217,246.54,246.47,20.0]
[1732196475864,22.75521217,246.54,246.35,31.9913]
[1732196475865,22.75521217,246.52,246.44,22.75521217]
[1732196476466,22.75521217,246.48,246.4,22.75521217]
[1732196476977,22.75521217,246.48,246.38,22.75521217]
[1732196477269,22.75521217,246.46,246.38,22.75521217]
[1732196477658,22.75521217,246.46,246.29,12.7046]
[1732196477659,22.75521217,246.42,246.34,22.75521217]
[1732196477849,22.75521217,246.4,246.32,22.75521217]
[1732196479660,26.81371217,246.4,246.32,22.75521217]
[1732196480152,26.81371217,246.4,246.33,20.0]
[1732196480471,22.75521217,246.38,246.33,20.0]
[1732196480653,22.75521217,246.38,246.3,22.75521217]
[1732196480855,22.75521217,246.38,246.31,23.776884]
[1732196481152,26.81371217,246.4,246.31,23.776884]
[1732196481753,22.75521217,246.36,246.26,22.75521217]
[1732196481970,22.75521217,246.34,246.26,22.75521217]
[1732196483054,22.75521217,246.34,246.27,20.0]
[1732196483255,22.75521217,246.34,246.17,16.22054]
[1732196483256,22.75521217,246.3,246.21,22.75521217]
[1732196483473,22.75521217,246.28,246.19,22.75521217]
[1732196484272,26.81571217,246.28,246.19,22.75521217]
[1732196484476,26.81571217,246.28,246.2,20.0]
[1732196484771,22.75521217,246.26,246.2,23.776884]
[1732196484971,22.75521217,246.26,246.19,22.75521217]
[1732196486351,22.75521217,246.26,246.2,23.776884]
[1732196486554,4.0605,246.28,246.2,23.776884]
[1732196486555,22.75521217,246.28,246.21,22.75521217]
[1732196486767,10.1469,246.38,246.25,22.75521217]
[1732196486768,22.75521217,246.32,246.25,22.75521217]
[1732196486974,26.81461217,246.34,246.25,22.75521217]
[1732196487471,26.81461217,246.34,246.2,23.776884]
[1732196487472,4.0594,246.34,246.2,23.776884]
[1732196487884,4.0594,246.34,246.12,22.75521217]
[1732196488466,4.0591,246.36,246.12,22.75521217]
[1732196488674,22.75521217,246.27,246.19,22.75521217]
[1732196488866,26.81431217,246.36,246.09,16.83479338]
[1732196488867,22.75521217,246.25,246.17,22.75521217]
[1732196489071,22.75521217,246.25,246.04,1.0]
[1732196489072,22.75521217,246.21,246.13,22.75521217]
[1732196489272,22.75521217,246.23,246.15,22.75521217]
[1732196489494,22.75521217,246.21,246.13,22.75521217]
[1732196490173,22.75521217,246.23,246.13,22.75521217]
[1732196490489,22.75521217,246.25,246.18,23.776884]
[1732196491195,22.75521217,246.27,246.19,22.75521217]
[1732196491869,22.75521217,246.29,246.21,22.75521217]
[1732196492191,26.81551217,246.29,246.21,22.75521217]
[1732196492983,22.75521217,246.29,246.21,22.75521217]
[1732196493370,5.35864244,246.38,246.12,22.75521217]
[1732196493371,22.75521217,246.33,246.25,22.75521217]
[1732196493974,4.0592,246.35,246.27,22.75521217]
[1732196493975,26.81441217,246.35,246.27,22.75521217]
[1732196495468,26.81441217,246.35,246.18,32.9273]
[1732196495469,22.75521217,246.28,246.18,22.75521217]
[1732196495661,4.0592,246.35,246.14,22.75521217]
[1732196495662,22.75521217,246.23,246.14,22.75521217]
[1732196496197,22.75521217,246.25,246.16,22.75521217]
[1732196496563,26.81611217,246.25,246.16,22.75521217]
[1732196496774,22.75521217,246.21,246.14,22.75521217]